[Event "4NCL 2019-20"]
[Site "Daventry"]
[Date "2020.01.12"]
[Round "4"]
[White "McDonald, Neil"]
[Black "Sucikova, Svetlana"]
[Result "1-0"]
[ECO "B15"]
[WhiteElo "2408"]
[BlackElo "2160"]
[Annotator "RC"]
[PlyCount "139"]
[EventDate "2020.01.11"]
[EventCountry "ENG"]
[SourceTitle "playchess.com"]
[Source "ChessBase"]
[SourceQuality "1"]
[TimeControl "40/6000:3000+30"]

1. e4 {[%emt 0:00:00]} c6 {[%emt 0:00:22]} 2. d4 {[%emt 0:00:00]} d5 {[%emt 0:00:00]} 3. Nd2 {[%emt 0:00:00]} dxe4 {[%emt 0:00:00]} 4. Nxe4 {[%emt 0:00:00]} Nf6 {[%emt 0:00:24]} 5. Nxf6+ {[%emt 0:00:00]} exf6 {[%emt 0:00:00]} 6. c3 {[%emt 0:01:58]} Bd6 {[%emt 0:00:03]} 7. Bd3 {[%emt 0:00:22]} O-O {[%emt 0:00:00]} 8. Ne2 {[%emt 0:00:30]} Re8 {[%emt 0:00:00]} 9. Qc2 {[%emt 0:02:56]} h6 {[%emt 0:00:00]} 10. Be3 {[%emt 0:09:40]} Be6 {[%emt 0:03:01]} 11. O-O-O {[%emt 0:01:53]} b5 {[%emt 0:16:04]} 12. Kb1 {[%emt 0:06:02]} Nd7 {[%emt 0:04:11]} 13. Nf4 {[%emt 0:02:25]} Bxf4 {[%emt 0:11:43]} 14. Bxf4 {[%emt 0:00:00]} Nb6 {[%emt 0:00:00]} 15. Rhe1 {[%emt 0:06:33]} a5 {[%emt 0:06:22]} 16. Bh7+ {[%emt 0:23:52]} Kh8 {[%emt 0:01:01]} 17. Bf5 {[%emt 0:00:00]} Qd5 {[%emt 0:03:38]} 18. Bxe6 {[%emt 0:01:02]} Rxe6 {[%emt 0:00:03]} 19. Rxe6 {[%emt 0:10:08]} Qxe6 {[%emt 0:01:55]} 20. Qd3 {[%emt 0:07:47]} Re8 {[%emt 0:06:02]} 21. h3 {[%emt 0:06:27]} a4 {[%emt 0:03:46]} 22. g4 {[%emt 0:01:16]} Nd5 {[%emt 0:03:03]} 23. Bd2 {[%emt 0:02:45]} Qe2 {[%emt 0:03:34]} 24. Qxe2 {[%emt 0:04:06]} Rxe2 {[%emt 0:00:00]} 25. Kc1 {[%emt 0:00:53]} Kg8 {[%emt 0:00:36]} 26. Rf1 {[%emt 0:00:57]} Kf8 {[%emt 0:02:01]} 27. Kd1 {[%emt 0:00:00]} Re6 {[%emt 0:01:00]} 28. Rg1 {[%emt 0:01:21]} f5 {[%emt 0:01:20]} 29. Rg3 {[%emt 0:00:45]} fxg4 {[%emt 0:05:32]} 30. hxg4 {[%emt 0:00:00]} Rg6 {[%emt 0:00:00]} 31. Ke2 {[%emt 0:00:34]} Ke7 {[%emt 0:05:39]} 32. b3 {[%emt 0:01:03]} axb3 {[%emt 0:00:47]} 33. axb3 {[%emt 0:00:00]} Re6+ {[%emt 0:05:04]} 34. Kd3 {[%emt 0:00:00]} g5 {[%emt 0:00:00]} 35. c4 {[%emt 0:00:00]} bxc4+ 36. bxc4 {[%emt 0:00:00]} Nf6 {[%emt 0:02:10]} 37. Bb4+ {[%emt 0:00:00]} Kd7 {[%emt 0:00:00]} 38. f3 {[%emt 0:00:00]} h5 {[%emt 0:04:40]} 39. gxh5 {[%emt 0:00:23]} Nxh5 {[%emt 0:00:00]} 40. Rxg5 {[%emt 0:00:07]} Nf4+ {[%emt 0:00:00]} 41. Kd2 {[%emt 0:53:47]} Re2+ {[%emt 0:49:39]} 42. Kd1 {[%emt 0:00:37]} Rb2 {[%emt 0:05:16]} 43. Bc3 {[%emt 0:00:00]} Nh3 {[%emt 0:00:00]} 44. Bxb2 {[%emt 0:00:00]} Nxg5 {[%emt 0:00:00]} 45. Ke2 {[%emt 0:00:00]} Ke6 {[%emt 0:02:40]} 46. Ke3 {[%emt 0:00:00]} f5 {[%emt 0:00:00]} 47. Ba3 {[%emt 0:00:00]} Nh7 {[%emt 0:00:00]} 48. Kf4 {[%emt 0:00:00]} Nf6 {[%emt 0:00:00]} 49. Bb4 {[%emt 0:00:00]} Nd7 {[%emt 0:00:00]} 50. Ba5 {[%emt 0:00:00]} Nf6 {[%emt 0:00:00]} 51. Bc7 {[%emt 0:00:00]} Nd7 {[%emt 0:00:00]} 52. Kg5 {[%emt 0:00:00]} Nf8 {[%emt 0:00:00]} 53. Kh6 {[%emt 0:00:00]} Kf7 {[%emt 0:00:00]} 54. Bb6 {[%emt 0:00:00]} Ne6 {[%emt 0:00:00]} 55. Kh5 {[%emt 0:00:00]} Kf6 {[%emt 0:00:00]} 56. Kh4 {[%emt 0:00:00]} Nf4 {[%emt 0:00:00]} 57. Kg3 {[%emt 0:00:00]} Nd3 {[%emt 0:00:00]} 58. Ba5 {[%emt 0:00:00]} Nb2 {[%emt 0:00:00]} 59. d5 {[%emt 0:00:00]} Nxc4 {[%emt 0:00:00]} 60. dxc6 {[%emt 0:00:00]} Ke5 {[%emt 0:01:11]} 61. Bb4 {[%emt 0:00:00]} Nb6 {[%emt 0:02:20]} 62. Kh4 {[%emt 0:00:00]} Kd5 {[%emt 0:01:18]} 63. c7 {[%emt 0:00:00]} Kc6 {[%emt 0:01:41]} 64. Ba5 {[%emt 0:00:00]} Nc8 {[%emt 0:00:01]} 65. Kg5 {[%emt 0:00:34]} Nd6 {[%emt 0:01:44]} 66. Bd2 {[%emt 0:01:28]} Kd7 {[%emt 0:01:27]} 67. Bf4 {[%emt 0:00:28]} Kxc7 {[%emt 0:01:10]} 68. Bxd6+ {[%emt 0:00:16]} Kxd6 {[%emt 0:00:05]} 69. Kxf5 {[%emt 0:00:10]} Ke7 {[%emt 0:00:14]} 70. Kg6 {[%emt 0:00:34]} 1-0

[Event "4NCL 2019-20"]
[Site "Daventry"]
[Date "2020.01.12"]
[Round "4"]
[White "Murphy, Conor E"]
[Black "Reimanis, Ritvars"]
[Result "1/2-1/2"]
[ECO "B31"]
[WhiteElo "2407"]
[BlackElo "2370"]
[Annotator "ChessBase"]
[PlyCount "73"]
[EventDate "2020.01.11"]
[EventCountry "ENG"]
[SourceTitle "playchess.com"]
[Source "ChessBase"]
[SourceQuality "1"]
[TimeControl "40/6000:3000+30"]

1. e4 {[%emt 0:00:00]} c5 {[%emt 0:00:00]} 2. Nf3 {[%emt 0:00:00]} Nc6 {[%emt 0:00:00]} 3. Bb5 {[%emt 0:00:00]} g6 {[%emt 0:00:00]} 4. Bxc6 {[%emt 0:00:00]} bxc6 {[%emt 0:00:00]} 5. O-O {[%emt 0:00:00]} Bg7 {[%emt 0:00:00]} 6. Re1 {[%emt 0:00:00]} Nh6 {[%emt 0:00:00]} 7. c3 {[%emt 0:00:00]} d6 {[%emt 0:00:00]} 8. h3 {[%emt 0:00:00]} f6 {[%emt 0:00:00]} 9. d4 {[%emt 0:00:00]} cxd4 {[%emt 0:00:00]} 10. cxd4 {[%emt 0:00:00]} Nf7 {[%emt 0:00:00]} 11. Nc3 {[%emt 0:00:00]} O-O {[%emt 0:00:00]} 12. Bd2 {[%emt 0:00:00]} Rb8 {[%emt 0:07:20]} 13. Rb1 {[%emt 0:00:16]} Bd7 {[%emt 0:37:21]} 14. Qa4 {[%emt 0:12:13]} Rb7 {[%emt 0:01:35]} 15. Qc4 {[%emt 0:03:45]} Qc8 {[%emt 0:05:44]} 16. Qa6 {[%emt 0:08:37]} Rb6 {[%emt 0:06:22]} 17. Qd3 {[%emt 0:03:29]} Rb7 {[%emt 0:11:49]} 18. h4 {[%emt 0:09:14]} Bg4 {[%emt 0:00:53]} 19. Nh2 {[%emt 0:00:29]} Be6 {[%emt 0:02:54]} 20. h5 {[%emt 0:04:06]} gxh5 {[%emt 0:02:43]} 21. Qg3 {[%emt 0:02:28]} Nh8 {[%emt 0:05:39]} 22. f4 {[%emt 0:23:04]} f5 {[%emt 0:00:00]} 23. d5 {[%emt 0:01:12]} cxd5 {[%emt 0:03:18]} 24. exd5 {[%emt 0:00:11]} Bf7 {[%emt 0:00:00]} 25. Nf3 {[%emt 0:00:00]} Ng6 {[%emt 0:00:13]} 26. Ng5 {[%emt 0:01:46]} Qc4 {[%emt 0:02:42]} 27. Qf3 {[%emt 0:05:18]} h6 {[%emt 0:02:06]} 28. Nxf7 {[%emt 0:01:58]} Rxf7 {[%emt 0:00:00]} 29. g3 {[%emt 0:03:06]} h4 {[%emt 0:01:07]} 30. Re6 {[%emt 0:02:32]} Bf6 {[%emt 0:05:53]} 31. Kh1 {[%emt 0:04:00]} Rg7 {[%emt 0:00:00]} 32. b3 {[%emt 0:03:44]} Qd4 {[%emt 0:00:00]} 33. Rd1 {[%emt 0:00:00]} hxg3 {[%emt 0:00:00]} 34. Ne2 {[%emt 0:00:00]} Qf2 {[%emt 0:00:00]} 35. Qxg3 {[%emt 0:00:00]} Qc5 {[%emt 0:00:30]} 36. Qd3 {[%emt 0:00:00]} Qf2 {[%emt 0:00:27]} 37. Qg3 {[%emt 0:00:03]} 1/2-1/2

[Event "4NCL 2019-20"]
[Site "Daventry"]
[Date "2020.01.12"]
[Round "4"]
[White "Houska, Jovanka"]
[Black "Chow, Samuel"]
[Result "1/2-1/2"]
[ECO "D77"]
[WhiteElo "2401"]
[BlackElo "2317"]
[Annotator "ChessBase"]
[PlyCount "66"]
[EventDate "2020.01.11"]
[EventCountry "ENG"]
[SourceTitle "playchess.com"]
[Source "ChessBase"]
[SourceQuality "1"]
[TimeControl "40/6000:3000+30"]

1. d4 {[%emt 0:00:00]} Nf6 {[%emt 0:00:00]} 2. Nf3 {[%emt 0:00:00]} g6 {[%emt 0:00:00]} 3. g3 {[%emt 0:00:00]} Bg7 {[%emt 0:00:55]} 4. Bg2 {[%emt 0:00:00]} O-O {[%emt 0:00:00]} 5. O-O {[%emt 0:00:00]} d5 {[%emt 0:00:00]} 6. c4 {[%emt 0:00:00]} dxc4 {[%emt 0:01:16]} 7. Na3 {[%emt 0:00:00]} c3 {[%emt 0:00:00]} 8. bxc3 {[%emt 0:00:00]} c5 {[%emt 0:00:00]} 9. Bb2 {[%emt 0:00:00]} Nc6 {[%emt 0:00:00]} 10. Re1 {[%emt 0:00:00]} Nd5 {[%emt 0:23:26]} 11. Rb1 {[%emt 0:08:07]} Nb6 {[%emt 0:06:40]} 12. dxc5 {[%emt 0:04:38]} Qxd1 {[%emt 0:06:01]} 13. Rexd1 {[%emt 0:00:00]} Na4 {[%emt 0:00:00]} 14. Nd4 {[%emt 0:00:00]} Bd7 {[%emt 0:10:00]} 15. Ba1 {[%emt 0:06:34]} Nxc5 {[%emt 0:05:31]} 16. Nb3 {[%emt 0:00:58]} Nxb3 {[%emt 0:00:00]} 17. Rxd7 {[%emt 0:06:12]} Nxa1 {[%emt 0:04:19]} 18. Rdxb7 {[%emt 0:00:35]} Rac8 {[%emt 0:03:07]} 19. Rxa1 {[%emt 0:01:00]} Bxc3 {[%emt 0:03:15]} 20. Rd1 {[%emt 0:07:06]} a5 {[%emt 0:10:49]} 21. Nb5 {[%emt 0:16:25]} Bf6 {[%emt 0:01:00]} 22. Nc7 {[%emt 0:00:00]} Nd4 {[%emt 0:01:25]} 23. Kf1 {[%emt 0:01:31]} e6 {[%emt 0:05:03]} 24. e3 {[%emt 0:01:46]} Nc2 {[%emt 0:01:26]} 25. Rd2 {[%emt 0:11:49]} Na3 {[%emt 0:00:04]} 26. Ra7 {[%emt 0:16:05]} Nb1 {[%emt 0:03:13]} 27. Rd7 {[%emt 0:00:40]} Nc3 {[%emt 0:00:33]} 28. Bh3 {[%emt 0:10:10]} Rcd8 {[%emt 0:00:53]} 29. Rxd8 {[%emt 0:01:13]} Bxd8 {[%emt 0:00:01]} 30. a3 {[%emt 0:03:15]} Bxc7 {[%emt 0:00:28]} 31. Rxc7 {[%emt 0:00:00]} Nb5 {[%emt 0:00:00]} 32. Rc5 {[%emt 0:00:00]} Nxa3 {[%emt 0:00:00]} 33. Rxa5 {[%emt 0:00:00]} Nc4 {[%emt 0:00:00]} 1/2-1/2

[Event "4NCL 2019-20"]
[Site "Daventry"]
[Date "2020.01.12"]
[Round "4"]
[White "Wells, Peter K"]
[Black "Haria, Ravi"]
[Result "0-1"]
[ECO "E01"]
[WhiteElo "2390"]
[BlackElo "2450"]
[Annotator "ChessBase"]
[PlyCount "48"]
[EventDate "2020.01.11"]
[EventCountry "ENG"]
[SourceTitle "playchess.com"]
[Source "ChessBase"]
[SourceQuality "1"]
[TimeControl "40/6000:3000+30"]

1. Nf3 {[%emt 0:06:02]} d5 {[%emt 0:00:00]} 2. d4 {[%emt 0:00:29]} Nf6 {[%emt 0:00:00]} 3. c4 {[%emt 0:00:00]} e6 {[%emt 0:00:00]} 4. g3 {[%emt 0:00:00]} Bb4+ {[%emt 0:00:00]} 5. Bd2 {[%emt 0:00:00]} Bd6 {[%emt 0:00:00]} 6. Nc3 {[%emt 0:00:36]} O-O {[%emt 0:00:00]} 7. Bg5 {[%emt 0:01:08]} c6 {[%emt 0:01:19]} 8. Bg2 {[%emt 0:04:15]} h6 {[%emt 0:00:30]} 9. Bxf6 {[%emt 0:03:05]} Qxf6 {[%emt 0:00:00]} 10. O-O {[%emt 0:11:59]} Qd8 {[%emt 0:05:55]} 11. e4 {[%emt 0:16:11]} dxc4 {[%emt 0:01:36]} 12. Qe2 {[%emt 0:01:49]} b5 {[%emt 0:05:25]} 13. e5 {[%emt 0:09:03]} Be7 {[%emt 0:01:23]} 14. a4 {[%emt 0:17:50]} b4 {[%emt 0:16:33]} 15. Ne4 {[%emt 0:00:00]} Ba6 {[%emt 0:02:10]} 16. Rfc1 {[%emt 0:08:53]} c3 {[%emt 0:04:32]} 17. Qc2 {[%emt 0:00:00]} Bd3 {[%emt 0:00:21]} 18. Qxd3 {[%emt 0:00:00]} cxb2 {[%emt 0:00:00]} 19. Rab1 {[%emt 0:00:00]} bxc1=Q+ {[%emt 0:00:00]} 20. Rxc1 {[%emt 0:00:00]} Nd7 {[%emt 0:06:35]} 21. Rxc6 {[%emt 0:02:01]} Rc8 {[%emt 0:01:46]} 22. d5 {[%emt 0:06:41]} exd5 {[%emt 0:01:14]} 23. Rxc8 {[%emt 0:00:00]} Qxc8 {[%emt 0:00:00]} 24. Qxd5 {[%emt 0:00:34]} Nb6 {[%emt 0:01:09]} 0-1

[Event "4NCL 2019-20"]
[Site "Daventry"]
[Date "2020.01.12"]
[Round "4"]
[White "Ashton, Adam G"]
[Black "House, Glenn L"]
[Result "1-0"]
[ECO "B40"]
[WhiteElo "2379"]
[BlackElo "2239"]
[Annotator "ChessBase"]
[PlyCount "51"]
[EventDate "2020.01.11"]
[EventCountry "ENG"]
[SourceTitle "playchess.com"]
[Source "ChessBase"]
[SourceQuality "1"]
[TimeControl "40/6000:3000+30"]

1. e4 {[%emt 0:02:46]} c5 {[%emt 0:00:00]} 2. Nf3 {[%emt 0:00:00]} e6 {[%emt 0:00:00]} 3. g3 {[%emt 0:00:00]} Nc6 {[%emt 0:00:00]} 4. Bg2 {[%emt 0:00:00]} Nf6 {[%emt 0:00:00]} 5. Qe2 {[%emt 0:00:00]} d5 {[%emt 0:02:12]} 6. exd5 {[%emt 0:00:53]} Nxd5 {[%emt 0:01:33]} 7. O-O {[%emt 0:00:00]} Be7 {[%emt 0:00:58]} 8. Rd1 {[%emt 0:00:00]} Nf6 {[%emt 0:31:29]} 9. c3 {[%emt 0:10:56]} O-O {[%emt 0:03:43]} 10. d4 {[%emt 0:00:18]} cxd4 {[%emt 0:04:25]} 11. Nxd4 {[%emt 0:00:00]} Nxd4 {[%emt 0:00:52]} 12. Rxd4 {[%emt 0:00:01]} Qb6 {[%emt 0:18:06]} 13. Be3 {[%emt 0:23:10]} Bc5 {[%emt 0:01:13]} 14. Rb4 {[%emt 0:04:22]} Qd6 {[%emt 0:00:00]} 15. Bxc5 {[%emt 0:01:56]} Qxc5 {[%emt 0:00:00]} 16. Nd2 {[%emt 0:00:46]} Rb8 {[%emt 0:04:02]} 17. Rd1 {[%emt 0:05:52]} Rd8 {[%emt 0:06:33]} 18. Ne4 {[%emt 0:06:33]} Rxd1+ {[%emt 0:04:56]} 19. Qxd1 {[%emt 0:00:00]} Nxe4 {[%emt 0:05:53]} 20. Bxe4 {[%emt 0:01:10]} f5 {[%emt 0:01:12]} 21. Qd8+ {[%emt 0:05:40]} Kf7 {[%emt 0:01:55]} 22. Bf3 {[%emt 0:01:39]} Qe7 {[%emt 0:01:10]} 23. Qh8 {[%emt 0:00:38]} h6 {[%emt 0:05:53]} 24. Bh5+ {[%emt 0:00:45]} Kf6 {[%emt 0:00:43]} 25. Qh7 {[%emt 0:00:12]} Ke5 {[%emt 0:02:35]} 26. Rd4 {[%emt 0:00:00] Kd5} 1-0

[Event "4NCL 2019-20"]
[Site "Daventry"]
[Date "2020.01.12"]
[Round "4"]
[White "Ledger, Andrew J"]
[Black "Holland, James P"]
[Result "1/2-1/2"]
[ECO "D07"]
[WhiteElo "2347"]
[BlackElo "2228"]
[Annotator "ChessBase"]
[PlyCount "101"]
[EventDate "2020.01.11"]
[EventCountry "ENG"]
[SourceTitle "playchess.com"]
[Source "ChessBase"]
[SourceQuality "1"]
[TimeControl "40/6000:3000+30"]

1. d4 {[%emt 0:00:00]} d5 {[%emt 0:00:00]} 2. c4 {[%emt 0:00:00]} Nc6 {[%emt 0:00:00]} 3. Nf3 {[%emt 0:00:00]} Bg4 {[%emt 0:00:00]} 4. Nc3 {[%emt 0:00:00]} e6 {[%emt 0:00:00]} 5. Bg5 {[%emt 0:00:00]} Be7 {[%emt 0:00:00]} 6. Bxe7 {[%emt 0:00:00]} Ngxe7 {[%emt 0:00:00]} 7. e3 {[%emt 0:00:00]} O-O {[%emt 0:00:00]} 8. Be2 {[%emt 0:05:24]} dxc4 {[%emt 0:11:01]} 9. Bxc4 {[%emt 0:13:57]} Nc8 {[%emt 0:28:59]} 10. O-O {[%emt 0:03:18]} Nd6 {[%emt 0:00:00]} 11. Be2 {[%emt 0:02:50]} Re8 {[%emt 0:00:41]} 12. h3 {[%emt 0:05:48]} Bf5 {[%emt 0:08:34]} 13. Qa4 {[%emt 0:07:09]} e5 {[%emt 0:04:48]} 14. dxe5 {[%emt 0:08:37]} Nxe5 {[%emt 0:00:00]} 15. Rfd1 {[%emt 0:00:00]} Qb8 {[%emt 0:15:55]} 16. Nxe5 {[%emt 0:10:45]} Rxe5 {[%emt 0:00:00]} 17. Qf4 {[%emt 0:00:00]} f6 {[%emt 0:00:00]} 18. Rd5 {[%emt 0:06:43]} Rxd5 {[%emt 0:01:49]} 19. Nxd5 {[%emt 0:00:00]} Be6 {[%emt 0:00:42]} 20. Bf3 {[%emt 0:02:34]} c6 {[%emt 0:03:17]} 21. Nc3 {[%emt 0:03:25]} Nc4 {[%emt 0:00:21]} 22. Qd4 {[%emt 0:09:15]} Qe5 {[%emt 0:00:00]} 23. Rd1 {[%emt 0:00:10]} Qxd4 {[%emt 0:04:34]} 24. Rxd4 {[%emt 0:00:00]} Ne5 {[%emt 0:01:15]} 25. Be2 {[%emt 0:00:00]} f5 {[%emt 0:02:40]} 26. f4 {[%emt 0:03:35]} Nf7 {[%emt 0:00:45]} 27. g4 {[%emt 0:01:21]} Rd8 {[%emt 0:00:39]} 28. Rxd8+ {[%emt 0:01:58]} Nxd8 {[%emt 0:00:00]} 29. Kf2 {[%emt 0:00:14]} Nf7 {[%emt 0:04:40]} 30. gxf5 {[%emt 0:01:26]} Bxf5 {[%emt 0:00:00]} 31. h4 {[%emt 0:00:00]} Nd6 {[%emt 0:00:00]} 32. Bf3 {[%emt 0:00:41]} Kf7 {[%emt 0:04:37]} 33. e4 {[%emt 0:00:00]} Bd7 {[%emt 0:00:00]} 34. b4 {[%emt 0:01:43]} b6 {[%emt 0:00:00]} 35. Ke3 {[%emt 0:00:12]} c5 {[%emt 0:00:00]} 36. bxc5 {[%emt 0:00:00]} bxc5 {[%emt 0:00:00]} 37. Kd3 {[%emt 0:00:21]} Be6 {[%emt 0:00:00]} 38. e5 {[%emt 0:02:33]} Nf5 {[%emt 0:00:00]} 39. h5 {[%emt 0:00:00]} g6 {[%emt 0:00:00]} 40. hxg6+ {[%emt 0:01:12]} Kxg6 {[%emt 0:00:00]} 41. Bd5 {[%emt 0:05:04]} Bxd5 {[%emt 0:06:01]} 42. Nxd5 {[%emt 0:00:08]} h5 {[%emt 0:01:21]} 43. Ke4 {[%emt 0:15:05]} h4 {[%emt 0:01:32]} 44. Nf6 {[%emt 0:05:55]} c4 {[%emt 0:07:54]} 45. Ng4 {[%emt 0:00:54]} h3 {[%emt 0:14:51]} 46. e6 {[%emt 0:08:57]} c3 {[%emt 0:02:34]} 47. Kd3 {[%emt 0:00:10]} c2 {[%emt 0:00:16]} 48. Kxc2 {[%emt 0:01:36]} Nd4+ {[%emt 0:08:15]} 49. Kd3 {[%emt 0:00:28]} Nxe6 {[%emt 0:00:11]} 50. Ke4 {[%emt 0:01:39]} Ng7 {[%emt 0:00:34]} 51. Kf3 {[%emt 0:01:27]} 1/2-1/2

[Event "4NCL 2019-20"]
[Site "Daventry"]
[Date "2020.01.12"]
[Round "4"]
[White "Taylor, Martin R"]
[Black "Paehtz, Elisabeth"]
[Result "0-1"]
[ECO "A36"]
[WhiteElo "2345"]
[BlackElo "2467"]
[Annotator "ChessBase"]
[PlyCount "92"]
[EventDate "2020.01.11"]
[EventCountry "ENG"]
[SourceTitle "playchess.com"]
[Source "ChessBase"]
[SourceQuality "1"]
[TimeControl "40/6000:3000+30"]

1. c4 {[%emt 0:00:00]} c5 {[%emt 0:00:34]} 2. g3 {[%emt 0:00:00]} Nc6 {[%emt 0:00:27]} 3. Bg2 {[%emt 0:00:00]} g6 {[%emt 0:00:00]} 4. Nc3 {[%emt 0:00:00]} Bg7 {[%emt 0:00:00]} 5. a3 {[%emt 0:00:00]} e6 {[%emt 0:00:29]} 6. Rb1 {[%emt 0:07:23]} Nge7 {[%emt 0:12:20]} 7. b4 {[%emt 0:04:17]} cxb4 {[%emt 0:03:42]} 8. axb4 {[%emt 0:00:00]} O-O {[%emt 0:00:59]} 9. Nf3 {[%emt 0:11:54]} d5 {[%emt 0:00:57]} 10. b5 {[%emt 0:08:14]} Na5 {[%emt 0:00:00]} 11. cxd5 {[%emt 0:03:18]} exd5 {[%emt 0:01:03]} 12. d4 {[%emt 0:11:49]} Bf5 {[%emt 0:01:25]} 13. Ra1 {[%emt 0:04:38]} Rc8 {[%emt 0:01:27]} 14. Bd2 {[%emt 0:06:29]} Nc4 {[%emt 0:00:00]} 15. O-O {[%emt 0:08:02]} Qb6 {[%emt 0:02:41]} 16. e3 {[%emt 0:01:09]} Rc7 {[%emt 0:04:57]} 17. Be1 {[%emt 0:10:27]} Rfc8 {[%emt 0:02:39]} 18. Nh4 {[%emt 0:02:48]} Be6 {[%emt 0:01:56]} 19. Qa4 {[%emt 0:12:40]} Nd6 {[%emt 0:07:09]} 20. Qxa7 {[%emt 0:02:46]} Qxa7 {[%emt 0:00:00]} 21. Rxa7 {[%emt 0:00:00]} Rxc3 {[%emt 0:00:00]} 22. Bxc3 {[%emt 0:00:00]} Rxc3 {[%emt 0:00:09]} 23. Rb1 {[%emt 0:01:20]} Bf6 {[%emt 0:00:00]} 24. Nf3 {[%emt 0:00:10]} Bf5 {[%emt 0:02:49]} 25. Rba1 {[%emt 0:00:34]} Nec8 {[%emt 0:02:51]} 26. R7a3 {[%emt 0:00:57]} Rxa3 {[%emt 0:00:37]} 27. Rxa3 {[%emt 0:00:00]} Nxb5 {[%emt 0:00:00]} 28. Rb3 {[%emt 0:00:09]} Nbd6 {[%emt 0:01:07]} 29. Ne5 {[%emt 0:00:00]} Be6 {[%emt 0:01:59]} 30. Nd3 {[%emt 0:00:00]} Bd8 {[%emt 0:02:29]} 31. Nf4 {[%emt 0:00:00]} Nb6 {[%emt 0:00:30]} 32. Ra3 {[%emt 0:00:12]} g5 {[%emt 0:00:11]} 33. Nd3 {[%emt 0:00:00]} Kf8 {[%emt 0:04:16]} 34. Ra7 {[%emt 0:00:00]} Ke7 {[%emt 0:02:33]} 35. Nb4 {[%emt 0:02:31]} Kd7 {[%emt 0:01:15]} 36. Kf1 {[%emt 0:00:00]} Be7 {[%emt 0:03:50]} 37. Ke2 {[%emt 0:00:00]} Kc7 {[%emt 0:02:20]} 38. Ra1 {[%emt 0:00:00]} Ndc4 {[%emt 0:00:00]} 39. Nd3 {[%emt 0:00:00]} Bd7 {[%emt 0:00:44]} 40. Rc1 {[%emt 0:00:44]} Bb5 {[%emt 0:01:39]} 41. Kf3 {[%emt 0:27:43]} Kd8 42. Rd1 {[%emt 0:00:45]} h5 {[%emt 0:09:59]} 43. h3 {[%emt 0:06:30]} Na4 {[%emt 0:07:10]} 44. Bf1 {[%emt 0:04:37]} Nc3 {[%emt 0:00:30]} 45. Rc1 {[%emt 0:00:30]} Nd2+ {[%emt 0:00:30]} 46. Kg2 {[%emt 0:00:30]} Na2 {[%emt 0:00:30]} 0-1

[Event "4NCL 2019-20"]
[Site "Daventry"]
[Date "2020.01.12"]
[Round "4"]
[White "Derakhshani, Borna"]
[Black "Sarakauskas, Gediminas"]
[Result "1/2-1/2"]
[ECO "A48"]
[WhiteElo "2342"]
[BlackElo "2433"]
[Annotator "ChessBase"]
[PlyCount "23"]
[EventDate "2020.01.11"]
[EventCountry "ENG"]
[SourceTitle "playchess.com"]
[Source "ChessBase"]
[SourceQuality "1"]
[TimeControl "40/6000:3000+30"]

1. Nf3 {[%emt 0:06:30]} g6 {[%emt 0:00:35]} 2. d4 {[%emt 0:00:29]} Bg7 {[%emt 0:00:00]} 3. e3 {[%emt 0:00:53]} Nf6 {[%emt 0:03:29]} 4. b3 {[%emt 0:00:00]} d6 {[%emt 0:02:24]} 5. Bb2 {[%emt 0:00:00]} O-O {[%emt 0:00:00]} 6. Be2 {[%emt 0:00:00]} e5 {[%emt 0:00:48]} 7. dxe5 {[%emt 0:00:15]} Ng4 {[%emt 0:00:00]} 8. h3 {[%emt 0:00:00]} Nxe5 {[%emt 0:00:00]} 9. Nxe5 {[%emt 0:00:00]} Bxe5 {[%emt 0:01:53]} 10. Bxe5 {[%emt 0:00:00]} dxe5 {[%emt 0:00:00]} 11. Qxd8 {[%emt 0:01:00]} Rxd8 {[%emt 0:00:00]} 12. Nd2 {[%emt 0:00:23]} 1/2-1/2

[Event "4NCL 2019-20"]
[Site "Daventry"]
[Date "2020.01.12"]
[Round "4"]
[White "Fitzsimons, David"]
[Black "Milliet, Sophie"]
[Result "1/2-1/2"]
[ECO "B51"]
[WhiteElo "2317"]
[BlackElo "2390"]
[Annotator "ChessBase"]
[PlyCount "89"]
[EventDate "2020.01.11"]
[EventCountry "ENG"]
[SourceTitle "playchess.com"]
[Source "ChessBase"]
[SourceQuality "1"]
[TimeControl "40/6000:3000+30"]

1. e4 {[%emt 0:00:00]} c5 {[%emt 0:00:23]} 2. Nf3 {[%emt 0:00:00]} d6 {[%emt 0:00:00]} 3. Bb5+ {[%emt 0:00:00]} Nd7 {[%emt 0:00:00]} 4. d4 {[%emt 0:00:00]} cxd4 {[%emt 0:00:00]} 5. Qxd4 {[%emt 0:00:00]} a6 {[%emt 0:00:00]} 6. Be2 {[%emt 0:00:00]} Ngf6 {[%emt 0:00:00]} 7. O-O {[%emt 0:00:00]} e5 {[%emt 0:00:03]} 8. Qe3 {[%emt 0:00:00]} Nc5 {[%emt 0:00:16]} 9. Nfd2 {[%emt 0:00:00]} Be7 {[%emt 0:01:08]} 10. c4 {[%emt 0:00:00]} O-O {[%emt 0:00:03]} 11. Nc3 {[%emt 0:00:00]} Bd7 {[%emt 0:00:39]} 12. h3 {[%emt 0:00:00]} Rc8 {[%emt 0:05:23]} 13. Rd1 {[%emt 0:00:06]} Ne6 {[%emt 0:13:13]} 14. Nb3 {[%emt 0:07:21]} Nf4 {[%emt 0:06:02]} 15. Bf1 {[%emt 0:02:50]} Be6 {[%emt 0:17:04]} 16. Qf3 {[%emt 0:00:57]} Ng6 {[%emt 0:00:26]} 17. Bg5 {[%emt 0:11:32]} Bxc4 {[%emt 0:00:57]} 18. Bxc4 {[%emt 0:01:42]} Rxc4 {[%emt 0:00:00]} 19. Qd3 {[%emt 0:02:01]} Rc6 {[%emt 0:00:00]} 20. Bxf6 {[%emt 0:02:05]} Bxf6 {[%emt 0:00:00]} 21. g3 {[%emt 0:00:32]} Ne7 {[%emt 0:01:28]} 22. Nd2 {[%emt 0:01:00]} Qc8 {[%emt 0:03:33]} 23. h4 {[%emt 0:01:02]} g6 {[%emt 0:04:44]} 24. Rac1 {[%emt 0:07:12]} Kh8 {[%emt 0:07:08]} 25. Nb3 {[%emt 0:01:03]} Qc7 {[%emt 0:05:54]} 26. Kg2 {[%emt 0:14:54]} Bg7 {[%emt 0:06:31]} 27. Nd5 {[%emt 0:01:25]} Nxd5 {[%emt 0:00:00]} 28. Rxc6 {[%emt 0:00:50]} Nf4+ {[%emt 0:02:19]} 29. gxf4 {[%emt 0:00:00]} Qxc6 {[%emt 0:00:00]} 30. Na5 {[%emt 0:05:08]} Qc8 {[%emt 0:04:05]} 31. f5 {[%emt 0:09:18]} gxf5 {[%emt 0:06:44]} 32. exf5 {[%emt 0:00:31]} d5 {[%emt 0:04:00]} 33. Qxd5 {[%emt 0:01:08]} Qxf5 {[%emt 0:00:00]} 34. Nxb7 {[%emt 0:01:53]} Qg4+ {[%emt 0:02:30]} 35. Kf1 {[%emt 0:00:00]} Qxh4 {[%emt 0:01:19]} 36. Nd6 {[%emt 0:00:54]} Qh5 {[%emt 0:01:36]} 37. Rc1 {[%emt 0:05:14]} Qh3+ {[%emt 0:00:34]} 38. Ke1 {[%emt 0:00:00]} Qd7 {[%emt 0:01:25]} 39. Rc6 {[%emt 0:01:27]} a5 {[%emt 0:00:00]} 40. Rb6 {[%emt 0:02:03]} Qc7 {[%emt 0:00:00]} 41. Rb7 {[%emt 0:57:52]} Qc1+ {[%emt 0:50:17]} 42. Ke2 {[%emt 0:00:09]} Qc2+ {[%emt 0:00:00]} 43. Ke1 {[%emt 0:00:00]} Qc1+ {[%emt 0:00:00]} 44. Ke2 {[%emt 0:00:00]} Qc2+ {[%emt 0:00:00]} 45. Ke1 {[%emt 0:00:00]} 1/2-1/2